Workbook

Sheet PARAMETRES (hidden)
B3: PARAMETRES
B5: Taux de change EUR/CHF | C5: 0.965
B7: Taux vacances | C7: 0.0833
B8: Charges employeurs | C8: 0.19
B10: Année de l'exercice | C10: 2022

Sheet COPYRIGHT (hidden)
C11: Solution pour établir un budget
C12: Mandaté Cie Moost
C13: Version du 3 octobre 2022
C15: Infogestion SA
C16: Ch. des Charmettes 9
C17: 1003 Lausanne
C18: rs@infogestion.ch
C19: +41 21 711 26 66
C21: Support:
C22: cf@infogestion.ch
C23: +41 21 711 26 65

Sheet HOME
I4: COUTS DE CESSION

Sheet COUTS CESSION
B4: CIE XXXX
B5: Préparation Coût de cession
B6: Spectacle XXX
B7: Date du fichier: | C7: 29.07.2022
B8: I CESSION | E8: Première date | G8: Date supplémentaire | I8: Date supplémentaire | K8: Date supplémentaire | M8: Date supplémentaire
B9: Charges artistiques | C9: salaire chargé / jour | E9: jours | F9: montant CHF | G9: jour | H9: montant | I9: jour | J9: montant | K9: jour | L9: montant | M9: jour | N9: montant
B10: Interprètes | F10: =SUM(F11:F14) -> 2700 | H10: =SUM(H11:H14) -> 900 | J10: =SUM(J11:J14) -> 900 | L10: =SUM(L11:L14) -> 900 | N10: =SUM(N11:N14) -> 900
B11: Interprète 1 - Prénom Nom | C11: 300 | E11: 3 | F11: =$C11*E11 -> 900 | G11: 1 | H11: =$C11*G11 -> 300 | I11: 1 | J11: =$C11*I11 -> 300 | K11: 1 | L11: =$C11*K11 -> 300 | M11: 1 | N11: =$C11*M11 -> 300
B12: Interprète 2 - Prénom Nom | C12: 300 | E12: 3 | F12: 900 | G12: 1 | H12: 300 | I12: 1 | J12: 300 | K12: 1 | L12: 300 | M12: 1 | N12: 300
B13: Interprète 3 - Prénom Nom | C13: 300 | E13: 3 | F13: 900 | G13: 1 | H13: 300 | I13: 1 | J13: 300 | K13: 1 | L13: 300 | M13: 1 | N13: 300
B14: mettre charges séparément ?
B15: Autres frais artistiques | F15: =SUM(F16:F19) -> 550 | H15: =SUM(H16:H19) -> 0 | J15: =SUM(J16:J19) -> 0 | L15: =SUM(L16:L19) -> 0 | N15: =SUM(N16:N19) -> 0
B16: Costumes | C16: 400 | E16: 1 | F16: =$C16*E16 -> 400 | G16: 0 | H16: =$C16*G16 -> 0 | I16: 0 | J16: =$C16*I16 -> 0 | K16: 0 | L16: =$C16*K16 -> 0 | M16: 0 | N16: =$C16*M16 -> 0
B17: Accessoires | C17: 100 | E17: 1 | F17: 100 | G17: 0 | H17: 0 | I17: 0 | J17: 0 | K17: 0 | L17: 0 | M17: 0 | N17: 0
B18: Autres | C18: 50 | E18: 1 | F18: 50 | G18: 0 | H18: 0 | I18: 0 | J18: 0 | K18: 0 | L18: 0 | M18: 0 | N18: 0
B20: Total artistique | F20: =F10+F15 -> 3250 | H20: =H10+H15 -> 900 | J20: =J10+J15 -> 900 | L20: =L10+L15 -> 900 | N20: =N10+N15 -> 900
B22: Charges techniques | C22: salaire chargé / service | E22: nb services | F22: montant | G22: nb services | H22: montant | I22: nb services | J22: montant | K22: nb services | L22: montant | M22: nb services | N22: montant
B23: Régisseur·euse·s | F23: =SUM(F24:F26) -> 3520 | H23: =SUM(H24:H26) -> 680 | J23: =SUM(J24:J26) -> 680 | L23: =SUM(L24:L26) -> 680 | N23: =SUM(N24:N26) -> 680
B24: Régisseur 1 - Prénom Nom | C24: 200 | E24: 6 | F24: =$C24*E24 -> 1200 | G24: 1 | H24: =$C24*G24 -> 200 | I24: 1 | J24: =$C24*I24 -> 200 | K24: 1 | L24: =$C24*K24 -> 200 | M24: 1 | N24: =$C24*M24 -> 200
B25: Régisseuse 2 - Prénom Nom | C25: 200 | E25: 6 | F25: 1200 | G25: 1 | H25: 200 | I25: 1 | J25: 200 | K25: 1 | L25: 200 | M25: 1 | N25: 200
B26: Services chargement / déchargement | C26: 280 | E26: 4 | F26: 1120 | G26: 1 | H26: 280 | I26: 1 | J26: 280 | K26: 1 | L26: 280 | M26: 1 | N26: 280
B28: Autres frais techniques | F28: =SUM(F29:F31) -> 500 | H28: =SUM(H29:H31) -> 0 | J28: =SUM(J29:J31) -> 0 | L28: =SUM(L29:L31) -> 0 | N28: =SUM(N29:N31) -> 0
B29: Carnet ATA | C29: 400 | E29: 1 | F29: =$C29*E29 -> 400 | G29: 0 | H29: =$C29*G29 -> 0 | I29: 0 | J29: =$C29*I29 -> 0 | K29: 0 | L29: =$C29*K29 -> 0 | M29: 0 | N29: =$C29*M29 -> 0
B30: Autres | C30: 100 | E30: 1 | F30: 100 | G30: 0 | H30: 0 | I30: 0 | J30: 0 | K30: 0 | L30: 0 | M30: 0 | N30: 0
B32: Total technique | F32: =F23+F28 -> 4020 | H32: =H23+H28 -> 680 | J32: =J23+J28 -> 680 | L32: =L23+L28 -> 680 | N32: =N23+N28 -> 680
B34: Charges production | C34: salaire chargé / service | E34: nb services | F34: montant | G34: nb services | H34: montant | I34: nb services | J34: montant | K34: nb services | L34: montant | M34: nb services | N34: montant
B35: Personnel production | F35: =SUM(F36:F40) -> 1350 | H35: =SUM(H36:H40) -> 0 | J35: =SUM(J36:J40) -> 0 | L35: =SUM(L36:L40) -> 0 | N35: =SUM(N36:N40) -> 0
B36: Directeur·ice artistique | C36: 300 | E36: 1 | F36: =$C36*E36 -> 300 | G36: 0 | H36: =$C36*G36 -> 0 | I36: 0 | J36: =$C36*I36 -> 0 | K36: 0 | L36: =$C36*K36 -> 0 | M36: 0 | N36: =$C36*M36 -> 0
B37: Directeur·ice technique | C37: 300 | E37: 1 | F37: 300 | G37: 0 | H37: 0 | I37: 0 | J37: 0 | K37: 0 | L37: 0 | M37: 0 | N37: 0
B38: Directeur·ice administratif·ve | C38: 300 | E38: 1 | F38: 300 | G38: 0 | H38: 0 | I38: 0 | J38: 0 | K38: 0 | L38: 0 | M38: 0 | N38: 0
B39: Responsable de diffusion | C39: 250 | E39: 1 | F39: 250 | G39: 0 | H39: 0 | I39: 0 | J39: 0 | K39: 0 | L39: 0 | M39: 0 | N39: 0
B40: Assistant·e de production | C40: 200 | E40: 1 | F40: 200 | G40: 0 | H40: 0 | I40: 0 | J40: 0 | K40: 0 | L40: 0 | M40: 0 | N40: 0
B42: Autres frais de production | F42: =SUM(F43:F44) -> 100 | H42: =SUM(H43:H44) -> 0 | J42: =SUM(J43:J44) -> 0 | L42: =SUM(L43:L44) -> 0 | N42: =SUM(N43:N44) -> 0
B43: Frais administration | C43: 50 | E43: 1 | F43: =$C43*E43 -> 50 | G43: 0 | H43: =$C43*G43 -> 0 | I43: 0 | J43: =$C43*I43 -> 0 | K43: 0 | L43: =$C43*K43 -> 0 | M43: 0 | N43: =$C43*M43 -> 0
B44: Autres | C44: 50 | E44: 1 | F44: 50 | G44: 0 | H44: 0 | I44: 0 | J44: 0 | K44: 0 | L44: 0 | M44: 0 | N44: 0
B46: TOTAL PRODUCTION | F46: =F35+F42 -> 1450 | H46: =H35+H42 -> 0 | J46: =J35+J42 -> 0 | L46: =L35+L42 -> 0 | N46: =N35+N42 -> 0
B48: TOTAL CHARGES ARTISTIQUES + TECHNIQUES + PRODUCTION | F48: =F20+F32+F46 -> 8720 | H48: =H20+H32+H46 -> 1580 | J48: =J20+J32+J46 -> 1580 | L48: =L20+L32+L46 -> 1580 | N48: =N20+N32+N46 -> 1580
B50: COÛTS PAR REPRÉSENTATION | C50: CHF | E50: Moy / date
A51: 1 | B51: =A51&" Représentation" -> 1 Représentation | C51: =SUM(OFFSET($E$48,,,,$A51*2)) -> 8720 | E51: =IF(C51<>C50,C51/A51,"") -> 8720
A52: =A51+1 -> 2 | B52: =A52&" Représentation" -> 2 Représentation | C52: =SUM(OFFSET($E$48,,,,$A52*2)) -> 10300 | E52: =IF(C52<>C51,C52/A52,"") -> 5150
A53: =A52+1 -> 3 | B53: 3 Représentation | C53: 11880 | E53: 3960
A54: =A53+1 -> 4 | B54: 4 Représentation | C54: 13460 | E54: =IF(C54<>C53,C54/A54,"") -> 3365
A55: 5 | B55: =A55&" Représentation" -> 5 Représentation | C55: 15040 | E55: =IF(C55<>C54,C55/A55,"") -> 3008
B58: II FRAIS ANNEXES
B59: Déplacements | E59: aller | F59: retour | G59: total
B60: Voyages équipe | E60: =SUM(E61:E66) -> 900 | F60: =SUM(F61:F66) -> 1000 | G60: =E60+F60 -> 1900
B61: Interprète 1 - Prénom Nom | C61: Ville - ville | E61: =300 -> 300 | F61: 250 | G61: 550
B62: Interprète 2 - Prénom Nom | C62: Ville - ville | E62: 200 | F62: 250 | G62: 450
B63: Interprète 3 - Prénom Nom | C63: Ville - ville | E63: 200 | F63: 200 | G63: 400
B64: Régisseur 1 - Prénom Nom | C64: Ville - ville | E64: 100 | F64: 150 | G64: 250
B65: Régisseur 2 - Prénom Nom | C65: Ville - ville | E65: 100 | F65: 150 | G65: =E65+F65 -> 250
B68: Hébergement | E68: arrivée | F68: départ | G68: nuitées
B69: Interprète 1 - Prénom Nom | C69: lit double | E69: 2022-08-27 | F69: 2022-09-01 | G69: =F69-E69 -> 5
B70: Interprète 2 - Prénom Nom | C70: lit double | E70: 2022-08-27 | F70: 2022-09-01 | G70: 5
B71: Interprète 3 - Prénom Nom | C71: lit double | E71: 2022-08-27 | F71: 2022-09-01 | G71: 5
B72: Régisseur 1 - Prénom Nom | C72: lit double | E72: 2022-08-26 | F72: 2022-09-01 | G72: 6
B73: Régisseur 2 - Prénom Nom | C73: lit double | E73: 2022-08-26 | F73: 2022-09-01 | G73: =F73-E73 -> 6
B76: Défraiements repas | C76: 27 | F76: =SUM(F77:F82) -> 1458
B77: Interprète 1 - Prénom Nom | E77: =LOOKUP(B77,$B$69:$B$74,$G$69:$G$74) -> 5 | F77: =$C$76*E77*2 -> 270
B78: Interprète 2 - Prénom Nom | E78: =LOOKUP(B78,$B$69:$B$74,$G$69:$G$74) -> 5 | F78: 270
B79: Interprète 3 - Prénom Nom | E79: =LOOKUP(B79,$B$69:$B$74,$G$69:$G$74) -> 5 | F79: 270
B80: Régisseur 1 - Prénom Nom | E80: =LOOKUP(B80,$B$69:$B$74,$G$69:$G$74) -> 6 | F80: 324
B81: Régisseur 2 - Prénom Nom | E81: =LOOKUP(B81,$B$69:$B$74,$G$69:$G$74) -> 6 | F81: =$C$76*E81*2 -> 324
B84: Transport décor | F84: =SUM(F85:F87) -> 2000
B85: Semi-remorque | C85: 1000 | E85: 2 | F85: =C85*E85 -> 2000
B86: mettre carnet ATA ici ?
B89: TOTAL FRAIS ANNEXES | E89: =G60+F76+F84 -> 5358
